{"text_format":"1","workbook":"xlsx","n_sheets":8,"sheets":["Angaben","Lightline 40 A opal","Lightline 40 P opal","Lightline 40 E opal","Lightline 40 A MLO","Lightline 40 P MLO","Lightline 40 E MLO","Tabelle2"],"not_rendered":{"charts":0,"images":1,"macros":1,"external_links":0,"defined_names":0,"comments":0,"pivot_tables":0},"unopened":[],"bounds":{"document_bytes":16777216,"sheet_cells":100000,"rows_first":2000,"rows_last":500,"rows_between":2000,"halvings":0,"cell_chars":16384,"cell_head_chars":4096},"cells_cut":0,"cells_raw":0,"read":"whole","date_system":"1900"}

{"sheet":"Angaben","index":0,"n_rows":23,"n_cols":4,"rows_kept":23,"cut":false,"hidden":false,"merged":[]}
["Lightline 40"]
[]
[]
[]
[]
[]
[]
["Bitte wählen Sie die Leuchte aus, zu der der Ausschreibungstext gewünscht ist"]
[]
["Leuchtentyp auswählen: ","Lightline 40 Anbau opal"]
[]
["Länge eingeben: ",1450,"mm"]
[]
[null,{"$f":"IF(B10=Tabelle2!A3,(Angaben!B12-35)/280,IF(Angaben!B10=Tabelle2!A6,(Angaben!B12-35)/280,(Angaben!B12-25)/280))","v":5.0892857142857144},{"$f":"ROUNDDOWN(B14,0)","v":5},{"$f":"ROUNDUP(B14,0)","v":6}]
[]
["Mögliche Längen:",{"$f":"IF(B10=Tabelle2!A3,Angaben!C14*280+25,IF(Angaben!B10=Tabelle2!A6,Angaben!C14*280+25,Angaben!C14*280+15))","v":1415},"mm  *",1]
[null,{"$f":"IF(B10=Tabelle2!A3,Angaben!D14*280+25,IF(Angaben!B10=Tabelle2!A6,Angaben!D14*280+25,Angaben!D14*280+15))","v":1695},"mm  *",false]
[]
[null,"*BITTE LÄNGE AUSWÄHLEN"]
[]
[null,"Bitte gewünschten Text öffnen"]
[]
["Bei Fragen oder fehlenden Ausschreibungstexten schreiben Sie uns bitte an:",null,null,"info@kotzolt.de"]

{"sheet":"Lightline 40 A opal","index":1,"n_rows":31,"n_cols":7,"rows_kept":31,"cut":false,"hidden":false,"merged":[]}
[]
[]
[]
[]
[]
["Ausschreibungstext"]
["Lightline 40 Anbau opal"]
[]
["Anbauleuchte mit LED ",null,null,{"$f":"(F9-15)/280*1100","v":5500},"lm",{"$f":"IF(A7=Angaben!B10,IF(Angaben!D16=1,Angaben!B16,IF(Angaben!D16=2,Angaben!B17)))","v":1415},"mm"]
["Leuchtenkörper aus Aluminiumprofil"]
["pulverbeschichtet in Weiß, Schwarz oder Titansilber"]
["Lichtaustritt mit Profil-Abdeckung opal diffus PMMA"]
["Einzelleuchte. Treiber in Leuchtenkörper integriert. "]
["Nach Ökodesign Richtline sind alle Komponenten einzeln austauschbar"]
["LED Module auf separater Trägerarmatur."]
[]
["Abmessung",null,{"$f":"F9","v":1415},"x 38 x 58","mm","(L x B x H)"]
["Leuchtmittel",null,"LED-Lumenstrom",null,{"$f":"D9","v":5500},"lm"]
[null,null,"Leuchten-Lumenstrom",null,{"$f":"ROUND(E18*0.714,0)","v":3927},"lm"]
[null,null,"Anschlussleistung ca. ",null,{"$f":"E18/1100*6.8","v":34},"Watt"]
[null,null,"Effizienz ca. 119lm/W"]
[null,null,"Farbwiedergabeindex > 80 (optional > 90)"]
[null,null,"Lebensdauer L80/B10/60000h"]
[null,null,"Flickerfrei Pst < 0,5 - SVM < 0,5 und Zhaga konform"]
["Farbtemperatur:",null,4000,"K","(optional 3000 K)"]
["Betriebsgerät",null,"DALI dimmbar (optional schaltbar)"]
["Schutzart: ",null,"IP 20"]
["Montageart: ",null,"Deckenanbau"]
[]
["Fabrikat ",null,"Kotzolt"]
["Typ",null,"Lightline 40 A LED opal",null,{"$f":"D9","v":5500},"lm"]

{"sheet":"Lightline 40 P opal","index":2,"n_rows":34,"n_cols":7,"rows_kept":34,"cut":false,"hidden":false,"merged":[]}
[]
[]
[]
[]
[]
["Ausschreibungstext"]
["Lightline 40 Pendel opal"]
[]
["Pendelleuchte mit LED ",null,null,{"$f":"(F9-15)/280*1100","v":-58.928571428571423},"lm",{"$f":"IF(A7=Angaben!B10,IF(Angaben!D16=1,Angaben!B16,IF(Angaben!D16=2,Angaben!B17)))","v":false},"mm"]
["Leuchtenkörper aus Aluminiumprofil"]
["pulverbeschichtet in Weiß, Schwarz oder Titansilber"]
["Lichtaustritt mit Profil-Abdeckung opal diffus PMMA"]
["Einzelleuchte. Treiber in Leuchtenkörper integriert. "]
["inkl. Stahlseile 1,0 Meter"]
["transparente Zuleitung 5x0,75mm² (schaltbar: 3x0,75mm²)"]
["und quadratischer Baldachin"]
["Nach Ökodesign Richtline sind alle Komponenten einzeln austauschbar"]
["LED Module auf separater Trägerarmatur."]
[]
["Abmessung",null,{"$f":"F9","v":false},"x 38 x 58","mm","(L x B x H)"]
["Leuchtmittel",null,"LED-Lumenstrom",null,{"$f":"D9","v":-58.928571428571423},"lm"]
[null,null,"Leuchten-Lumenstrom",null,{"$f":"ROUND(E21*0.714,0)","v":-42},"lm"]
[null,null,"Anschlussleistung ca. ",null,{"$f":"E21/1100*6.8","v":-0.36428571428571427},"Watt"]
[null,null,"Effizienz ca. 119lm/W"]
[null,null,"Farbwiedergabeindex > 80 (optional > 90)"]
[null,null,"Lebensdauer L80/B10/60000h"]
[null,null,"Flickerfrei Pst < 0,5 - SVM < 0,5 und Zhaga konform"]
["Farbtemperatur:",null,4000,"K","(optional 3000 K)"]
["Betriebsgerät",null,"DALI dimmbar (optional schaltbar)"]
["Schutzart: ",null,"IP 20"]
["Montageart: ",null,"Pendelmontage"]
[]
["Fabrikat ",null,"Kotzolt"]
["Typ",null,"Lightline 40 P LED opal",null,{"$f":"D9","v":-58.928571428571423},"lm"]

{"sheet":"Lightline 40 E opal","index":3,"n_rows":31,"n_cols":7,"rows_kept":31,"cut":false,"hidden":false,"merged":[]}
[]
[]
[]
[]
[]
["Ausschreibungstext"]
["Lightline 40 Einbau opal"]
[]
["Einbauleuchte mit LED ",null,null,{"$f":"(F9-25)/280*1100","v":-98.214285714285722},"lm",{"$f":"IF(A7=Angaben!B10,IF(Angaben!D16=1,Angaben!B16,IF(Angaben!D16=2,Angaben!B17)))","v":false},"mm"]
["Leuchtenkörper aus Aluminiumprofil eloxiert, "]
["pulverbeschichtet in Weiß, Schwarz oder Titansilber"]
["Lichtaustritt mit Profil-Abdeckung opal diffus PMMA"]
["Einzelleuchte. Treiber in Leuchtenkörper integriert. "]
["Nach Ökodesign Richtline sind alle Komponenten einzeln austauschbar"]
["LED Module auf separater Trägerarmatur."]
[]
["Abmessung",null,{"$f":"F9","v":false},"x 54 x 58","mm","(L x B x H)"]
["Leuchtmittel",null,"LED-Lumenstrom",null,{"$f":"D9","v":-98.214285714285722},"lm"]
[null,null,"Leuchten-Lumenstrom",null,{"$f":"ROUND(E18*0.714,0)","v":-70},"lm"]
[null,null,"Anschlussleistung ca. ",null,{"$f":"E18/1100*6.8","v":-0.6071428571428571},"Watt"]
[null,null,"Effizienz ca. 119lm/W"]
[null,null,"Farbwiedergabeindex > 80 (optional > 90)"]
[null,null,"Lebensdauer L80/B10/60000h"]
[null,null,"Flickerfrei Pst < 0,5 - SVM < 0,5 und Zhaga konform"]
["Farbtemperatur:",null,4000,"K","(optional 3000 K)"]
["Betriebsgerät",null,"DALI dimmbar (optional schaltbar)"]
["Schutzart: ",null,"IP 20"]
["Montageart: ",null,"Einbaumontage"]
[]
["Fabrikat ",null,"Kotzolt"]
["Typ",null,"Lightline 40 E LED opal",null,{"$f":"D9","v":-98.214285714285722},"lm"]

{"sheet":"Lightline 40 A MLO","index":4,"n_rows":33,"n_cols":7,"rows_kept":33,"cut":false,"hidden":false,"merged":[]}
[]
[]
[]
[]
[]
["Ausschreibungstext"]
["Lightline 40 Anbau MLO"]
[]
["Anbauleuchte mit LED ",null,null,{"$f":"(F9-15)/280*1100","v":-58.928571428571423},"lm",{"$f":"IF(A7=Angaben!B10,IF(Angaben!D16=1,Angaben!B16,IF(Angaben!D16=2,Angaben!B17)))","v":false},"mm"]
["Leuchtenkörper aus Aluminiumprofil"]
["pulverbeschichtet in Weiß, Schwarz oder Titansilber"]
["Lichtaustritt mit Profil-Abdeckung MLO (Multi-Layer-Optik)"]
["Klare Abdeckung mit Mikroprismenscheibe und zusätzlicher Streuscheibe"]
["für eine blendfreie Lichtverteilung"]
["Einzelleuchte. Treiber in Leuchtenkörper integriert. "]
["Nach Ökodesign Richtline sind alle Komponenten einzeln austauschbar"]
["LED Module auf separater Trägerarmatur."]
[]
["Abmessung",null,{"$f":"F9","v":false},"x 38 x 58","mm","(L x B x H)"]
["Leuchtmittel",null,"LED-Lumenstrom",null,{"$f":"D9","v":-58.928571428571423},"lm"]
[null,null,"Leuchten-Lumenstrom",null,{"$f":"ROUND(E20*0.677,0)","v":-40},"lm"]
[null,null,"Anschlussleistung ca. ",null,{"$f":"E20/1100*6.8","v":-0.36428571428571427},"Watt"]
[null,null,"Effizienz ca. 110 lm/W"]
[null,null,"Farbwiedergabeindex > 80 (optional > 90)"]
[null,null,"Lebensdauer L80/B10/60000h"]
[null,null,"Flickerfrei Pst < 0,5 - SVM < 0,5 und Zhaga konform"]
["Farbtemperatur:",null,4000,"K","(optional 3000 K)"]
["Betriebsgerät",null,"DALI dimmbar (optional schaltbar)"]
["Schutzart: ",null,"IP 20"]
["Montageart: ",null,"Deckenanbau"]
[]
["Fabrikat ",null,"Kotzolt"]
["Typ",null,"Lightline 40 A LED MLO",null,{"$f":"D9","v":-58.928571428571423},"lm"]

{"sheet":"Lightline 40 P MLO","index":5,"n_rows":36,"n_cols":7,"rows_kept":36,"cut":false,"hidden":false,"merged":[]}
[]
[]
[]
[]
[]
["Ausschreibungstext"]
["Lightline 40 Pendel MLO"]
[]
["Pendelleuchte mit LED ",null,null,{"$f":"(F9-15)/280*1100","v":-58.928571428571423},"lm",{"$f":"IF(A7=Angaben!B10,IF(Angaben!D16=1,Angaben!B16,IF(Angaben!D16=2,Angaben!B17)))","v":false},"mm"]
["Leuchtenkörper aus Aluminiumprofil"]
["pulverbeschichtet in Weiß, Schwarz oder Titansilber"]
["Lichtaustritt mit Profil-Abdeckung MLO (Multi-Layer-Optik)"]
["Klare Abdeckung mit Mikroprismenscheibe und zusätzlicher Streuscheibe"]
["für eine blendfreie Lichtverteilung"]
["Einzelleuchte. Treiber in Leuchtenkörper integriert. "]
["inkl. Stahlseile 1,0 Meter"]
["transparente Zuleitung 5x0,75mm² (schaltbar: 3x0,75mm²)"]
["und quadratischer Baldachin"]
["Nach Ökodesign Richtline sind alle Komponenten einzeln austauschbar"]
["LED Module auf separater Trägerarmatur."]
[]
["Abmessung",null,{"$f":"F9","v":false},"x 38 x 58","mm","(L x B x H)"]
["Leuchtmittel",null,"LED-Lumenstrom",null,{"$f":"D9","v":-58.928571428571423},"lm"]
[null,null,"Leuchten-Lumenstrom",null,{"$f":"ROUND(E23*0.677,0)","v":-40},"lm"]
[null,null,"Anschlussleistung ca. ",null,{"$f":"E23/1100*6.8","v":-0.36428571428571427},"Watt"]
[null,null,"Effizienz ca. 110 lm/W"]
[null,null,"Farbwiedergabeindex > 80 (optional > 90)"]
[null,null,"Lebensdauer L80/B10/60000h"]
[null,null,"Flickerfrei Pst < 0,5 - SVM < 0,5 und Zhaga konform"]
["Farbtemperatur:",null,4000,"K","(optional 3000 K)"]
["Betriebsgerät",null,"DALI dimmbar (optional schaltbar)"]
["Schutzart: ",null,"IP 20"]
["Montageart: ",null,"Pendelmontage"]
[]
["Fabrikat ",null,"Kotzolt"]
["Typ",null,"Lightline 40 P LED MLO",null,{"$f":"D9","v":-58.928571428571423},"lm"]

{"sheet":"Lightline 40 E MLO","index":6,"n_rows":33,"n_cols":7,"rows_kept":33,"cut":false,"hidden":false,"merged":[]}
[]
[]
[]
[]
[]
["Ausschreibungstext"]
["Lightline 40 Einbau MLO"]
[]
["Einbauleuchte mit LED ",null,null,{"$f":"(F9-25)/280*1100","v":-98.214285714285722},"lm",{"$f":"IF(A7=Angaben!B10,IF(Angaben!D16=1,Angaben!B16,IF(Angaben!D16=2,Angaben!B17)))","v":false},"mm"]
["Leuchtenkörper aus Aluminiumprofil"]
["pulverbeschichtet in Weiß, Schwarz oder Titansilber"]
["Lichtaustritt mit Profil-Abdeckung MLO (Multi-Layer-Optik)"]
["Klare Abdeckung mit Mikroprismenscheibe und zusätzlicher Streuscheibe"]
["für eine blendfreie Lichtverteilung"]
["Einzelleuchte. Treiber in Leuchtenkörper integriert. "]
["Nach Ökodesign Richtline sind alle Komponenten einzeln austauschbar"]
["LED Module auf separater Trägerarmatur."]
[]
["Abmessung",null,{"$f":"F9","v":false},"x 54 x 58","mm","(L x B x H)"]
["Leuchtmittel",null,"LED-Lumenstrom",null,{"$f":"D9","v":-98.214285714285722},"lm"]
[null,null,"Leuchten-Lumenstrom",null,{"$f":"ROUND(E20*0.677,0)","v":-66},"lm"]
[null,null,"Anschlussleistung ca. ",null,{"$f":"E20/1100*6.8","v":-0.6071428571428571},"Watt"]
[null,null,"Effizienz ca. 110 lm/W"]
[null,null,"Farbwiedergabeindex > 80 (optional > 90)"]
[null,null,"Lebensdauer L80/B10/60000h"]
[null,null,"Flickerfrei Pst < 0,5 - SVM < 0,5 und Zhaga konform"]
["Farbtemperatur:",null,4000,"K","(optional 3000 K)"]
["Betriebsgerät",null,"DALI dimmbar (optional schaltbar)"]
["Schutzart: ",null,"IP 20"]
["Montageart: ",null,"Einbaumontage"]
[]
["Fabrikat ",null,"Kotzolt"]
["Typ",null,"Lightline 40 E LED MLO",null,{"$f":"D9","v":-98.214285714285722},"lm"]

{"sheet":"Tabelle2","index":7,"n_rows":6,"n_cols":1,"rows_kept":6,"cut":false,"hidden":true,"merged":[]}
["Lightline 40 Anbau opal"]
["Lightline 40 Pendel opal"]
["Lightline 40 Einbau opal"]
["Lightline 40 Anbau MLO"]
["Lightline 40 Pendel MLO"]
["Lightline 40 Einbau MLO"]